[Event "Titled Tuesday Blitz February 21 Early 2023"]
[White "Grigoriants, Sergey"]
[Black "Ladan, Nicholas"]
[WhiteFideId "4130804"]
[BlackFideId "30918855"]
[WhiteElo "2562"]
[BlackElo "2228"]
[Result "1-0"]
[Round "02"]
[TimeControl "180+2"]
[Date "2023.02.21"]
[WhiteClock "0:00:07"]
[BlackClock "0:00:04"]

1. d4 {[%clk 0:02:50]}  d5 {[%clk 0:03:00]} 2. c4 {[%clk 0:02:50]}  e6 {[%clk 0:02:59]} 3. Nc3 {[%clk 0:02:49]}  c6 {[%clk 0:03:00]} 4. e3 {[%clk 0:02:49]}  Nf6 {[%clk 0:02:59]} 5. Nf3 {[%clk 0:02:48]}  Nbd7 {[%clk 0:03:00]} 6. Qc2 {[%clk 0:02:49]}  Bd6 {[%clk 0:02:58]} 7. Bd3 {[%clk 0:02:45]}  O-O {[%clk 0:02:55]} 8. O-O {[%clk 0:02:44]}  b6 {[%clk 0:02:55]} 9. e4 {[%clk 0:02:40]}  dxe4 {[%clk 0:02:52]} 10. Nxe4 {[%clk 0:02:40]}  Be7 {[%clk 0:02:53]} 11. Bf4 {[%clk 0:02:30]}  Bb7 {[%clk 0:02:52]} 12. Nxf6+ {[%clk 0:02:01]}  Nxf6 {[%clk 0:02:40]} 13. c5 {[%clk 0:02:01]}  bxc5 {[%clk 0:02:34]} 14. dxc5 {[%clk 0:02:00]}  Bxc5 {[%clk 0:02:34]} 15. Bxh7+ {[%clk 0:01:54]}  Nxh7 {[%clk 0:02:34]} 16. Qxc5 {[%clk 0:01:55]}  Qd5 {[%clk 0:02:31]} 17. Be3 {[%clk 0:01:47]}  Qxc5 {[%clk 0:02:28]} 18. Bxc5 {[%clk 0:01:47]}  Rfd8 {[%clk 0:02:29]} 19. Rac1 {[%clk 0:01:29]}  Ba6 {[%clk 0:02:25]} 20. Rfe1 {[%clk 0:01:24]}  Rd5 {[%clk 0:02:05]} 21. Nd4 {[%clk 0:01:19]}  Rc8 {[%clk 0:01:47]} 22. f3 {[%clk 0:01:14]}  Rc7 {[%clk 0:01:41]} 23. b4 {[%clk 0:01:12]}  Nf6 {[%clk 0:01:40]} 24. Rc3 {[%clk 0:01:06]}  Nd7 {[%clk 0:01:35]} 25. Nb3 {[%clk 0:01:03]}  Nb6 {[%clk 0:01:32]} 26. Rec1 {[%clk 0:00:54]}  Na4 {[%clk 0:01:30]} 27. Re3 {[%clk 0:00:50]}  Rcd7 {[%clk 0:01:24]} 28. h4 {[%clk 0:00:47]}  Nb2 {[%clk 0:01:16]} 29. Na5 {[%clk 0:00:42]}  Bb5 {[%clk 0:01:13]} 30. Kh2 {[%clk 0:00:40]}  Nd3 {[%clk 0:01:08]} 31. Rc3 {[%clk 0:00:35]}  Nf4 {[%clk 0:01:03]} 32. Nb3 {[%clk 0:00:28]}  Rd1 {[%clk 0:00:43]} 33. Rc2 {[%clk 0:00:25]}  R7d3 {[%clk 0:00:35]} 34. Rxd3 {[%clk 0:00:22]}  Bxd3 {[%clk 0:00:30]} 35. Rd2 {[%clk 0:00:22]}  Rxd2 {[%clk 0:00:26]} 36. Nxd2 {[%clk 0:00:23]}  Ne2 {[%clk 0:00:17]} 37. Bxa7 {[%clk 0:00:21]}  Nc3 {[%clk 0:00:15]} 38. a3 {[%clk 0:00:15]}  Bb5 {[%clk 0:00:15]} 39. Nb3 {[%clk 0:00:12]}  Nb1 {[%clk 0:00:15]} 40. Bd4 {[%clk 0:00:08]}  Nxa3 {[%clk 0:00:15]} 41. Nc5 {[%clk 0:00:07]}  Nc2 {[%clk 0:00:12]} 42. Bc3 {[%clk 0:00:07]}  Ne3 {[%clk 0:00:12]} 43. g4 {[%clk 0:00:08]}  Nd5 {[%clk 0:00:12]} 44. Bd2 {[%clk 0:00:08]}  Kf8 {[%clk 0:00:11]} 45. Kg3 {[%clk 0:00:08]}  Ke7 {[%clk 0:00:12]} 46. h5 {[%clk 0:00:08]}  Kd6 {[%clk 0:00:10]} 47. f4 {[%clk 0:00:08]}  Bd3 {[%clk 0:00:10]} 48. g5 {[%clk 0:00:08]}  Bf5 {[%clk 0:00:09]} 49. Nb7+ {[%clk 0:00:08]}  Kc7 {[%clk 0:00:08]} 50. Nc5 {[%clk 0:00:08]}  Kb6 {[%clk 0:00:09]} 51. Nd7+ {[%clk 0:00:08]}  Kb5 {[%clk 0:00:09]} 52. Ne5 {[%clk 0:00:08]}  Nxb4 {[%clk 0:00:09]} 53. Nxf7 {[%clk 0:00:06]}  Nd5 {[%clk 0:00:07]} 54. Nd6+ {[%clk 0:00:04]}  Kb6 {[%clk 0:00:06]} 55. Nxf5 {[%clk 0:00:05]}  exf5 {[%clk 0:00:07]} 56. g6 {[%clk 0:00:06]}  Ne7 {[%clk 0:00:06]} 57. Kh4 {[%clk 0:00:06]}  Ng8 {[%clk 0:00:04]} 58. Bc3 {[%clk 0:00:06]}  c5 {[%clk 0:00:02]} 59. Bxg7 {[%clk 0:00:06]}  c4 {[%clk 0:00:03]} 60. h6 {[%clk 0:00:06]}  Nxh6 {[%clk 0:00:03]} 61. Bxh6 {[%clk 0:00:06]}  c3 {[%clk 0:00:04]} 62. Bg7 {[%clk 0:00:07]}  c2 {[%clk 0:00:04]} 63. Bb2 {[%clk 0:00:07]} 1-0


[Site "https://www.chess.com"]

[Event "Titled Tuesday Blitz February 21 Early 2023"]
[White "Martin Duque, Jesus"]
[Black "Bernadskiy, Vitaliy"]
[WhiteFideId "2208954"]
[BlackFideId "14100371"]
[WhiteElo "2386"]
[BlackElo "2592"]
[Result "0-1"]
[Round "02"]
[TimeControl "180+2"]
[Date "2023.02.21"]
[WhiteClock "0:00:34"]
[BlackClock "0:01:48"]

1. b3 {[%clk 0:02:59]}  e5 {[%clk 0:02:58]} 2. Bb2 {[%clk 0:02:59]}  Nc6 {[%clk 0:02:59]} 3. c4 {[%clk 0:02:59]}  g6 {[%clk 0:02:59]} 4. g3 {[%clk 0:02:59]}  Bg7 {[%clk 0:02:59]} 5. Nc3 {[%clk 0:02:58]}  d6 {[%clk 0:02:58]} 6. Bg2 {[%clk 0:02:58]}  f5 {[%clk 0:02:58]} 7. e3 {[%clk 0:02:58]}  Nf6 {[%clk 0:02:58]} 8. Nge2 {[%clk 0:02:58]}  O-O {[%clk 0:02:59]} 9. d3 {[%clk 0:02:52]}  Ne7 {[%clk 0:02:57]} 10. f4 {[%clk 0:02:50]}  c6 {[%clk 0:02:55]} 11. Qd2 {[%clk 0:02:48]}  a6 {[%clk 0:02:53]} 12. O-O {[%clk 0:02:37]}  Be6 {[%clk 0:02:53]} 13. c5 {[%clk 0:02:33]}  Nfd5 {[%clk 0:02:40]} 14. cxd6 {[%clk 0:02:28]}  Qxd6 {[%clk 0:02:41]} 15. Nxd5 {[%clk 0:02:12]}  Nxd5 {[%clk 0:02:42]} 16. fxe5 {[%clk 0:02:12]}  Bxe5 {[%clk 0:02:41]} 17. Bxe5 {[%clk 0:02:13]}  Qxe5 {[%clk 0:02:42]} 18. Nf4 {[%clk 0:02:09]}  Rfe8 {[%clk 0:02:40]} 19. e4 {[%clk 0:01:59]}  Qd4+ {[%clk 0:02:28]} 20. Kh1 {[%clk 0:01:58]}  fxe4 {[%clk 0:02:28]} 21. Bxe4 {[%clk 0:01:55]}  Nc3 {[%clk 0:02:25]} 22. Rae1 {[%clk 0:00:59]}  Bf7 {[%clk 0:02:12]} 23. Bg2 {[%clk 0:00:53]}  Rad8 {[%clk 0:02:10]} 24. Rxe8+ {[%clk 0:00:47]}  Rxe8 {[%clk 0:02:11]} 25. Nh3 {[%clk 0:00:46]}  Bd5 {[%clk 0:02:03]} 26. Nf4 {[%clk 0:00:41]}  Bxg2+ {[%clk 0:01:54]} 27. Qxg2 {[%clk 0:00:38]}  Rf8 {[%clk 0:01:50]} 28. Ne6 {[%clk 0:00:34]}  Rxf1+ {[%clk 0:01:48]} 29. Qxf1 {[%clk 0:00:34]}  Qd5+ {[%clk 0:01:48]} 0-1


[Site "https://www.chess.com"]

[Event "Titled Tuesday Blitz February 21 Early 2023"]
[White "Molina, Roberto Junio Brito"]
[Black "Bilan, Danila"]
[WhiteFideId "2109450"]
[BlackFideId "24161918"]
[WhiteElo "2403"]
[BlackElo "2303"]
[Result "1-0"]
[Round "02"]
[TimeControl "180+2"]
[Date "2023.02.21"]
[WhiteClock "0:00:11"]
[BlackClock "0:00:01"]

1. d4 {[%clk 0:03:00]}  d5 {[%clk 0:02:59]} 2. c4 {[%clk 0:03:00]}  c6 {[%clk 0:02:58]} 3. Nf3 {[%clk 0:02:57]}  Nf6 {[%clk 0:02:57]} 4. Nc3 {[%clk 0:02:57]}  e6 {[%clk 0:02:56]} 5. Bg5 {[%clk 0:02:56]}  Nbd7 {[%clk 0:02:55]} 6. e3 {[%clk 0:02:55]}  Be7 {[%clk 0:02:48]} 7. Bd3 {[%clk 0:02:54]}  dxc4 {[%clk 0:02:48]} 8. Bxc4 {[%clk 0:02:54]}  Nd5 {[%clk 0:02:48]} 9. Bxe7 {[%clk 0:02:53]}  Qxe7 {[%clk 0:02:49]} 10. O-O {[%clk 0:02:52]}  O-O {[%clk 0:02:46]} 11. Rc1 {[%clk 0:02:51]}  Nxc3 {[%clk 0:02:44]} 12. Rxc3 {[%clk 0:02:47]}  e5 {[%clk 0:02:43]} 13. dxe5 {[%clk 0:02:38]}  Nxe5 {[%clk 0:02:43]} 14. Nxe5 {[%clk 0:02:39]}  Qxe5 {[%clk 0:02:43]} 15. f4 {[%clk 0:02:39]}  Qf6 {[%clk 0:02:31]} 16. f5 {[%clk 0:02:30]}  Rd8 {[%clk 0:02:18]} 17. Qc2 {[%clk 0:02:21]}  b6 {[%clk 0:02:00]} 18. b4 {[%clk 0:02:05]}  Bb7 {[%clk 0:01:29]} 19. Rf4 {[%clk 0:01:55]}  Rd6 {[%clk 0:01:19]} 20. Rd3 {[%clk 0:01:39]}  Rad8 {[%clk 0:01:12]} 21. Rxd6 {[%clk 0:01:38]}  Rxd6 {[%clk 0:01:11]} 22. h3 {[%clk 0:01:32]}  h6 {[%clk 0:00:57]} 23. Qe4 {[%clk 0:01:27]}  Rd8 {[%clk 0:00:41]} 24. Bb3 {[%clk 0:01:03]}  Ba8 {[%clk 0:00:39]} 25. Qc4 {[%clk 0:00:58]}  Re8 {[%clk 0:00:18]} 26. Re4 {[%clk 0:00:49]}  Rxe4 {[%clk 0:00:13]} 27. Qxe4 {[%clk 0:00:50]}  Qd8 {[%clk 0:00:12]} 28. Qe5 {[%clk 0:00:45]}  Qf8 {[%clk 0:00:09]} 29. f6 {[%clk 0:00:36]}  g6 {[%clk 0:00:08]} 30. Qe7 {[%clk 0:00:27]}  c5 {[%clk 0:00:08]} 31. bxc5 {[%clk 0:00:20]}  bxc5 {[%clk 0:00:09]} 32. Qxa7 {[%clk 0:00:18]}  Bc6 {[%clk 0:00:09]} 33. Qc7 {[%clk 0:00:17]}  Be4 {[%clk 0:00:04]} 34. a4 {[%clk 0:00:15]}  g5 {[%clk 0:00:04]} 35. a5 {[%clk 0:00:14]}  h5 {[%clk 0:00:04]} 36. a6 {[%clk 0:00:14]}  h4 {[%clk 0:00:04]} 37. a7 {[%clk 0:00:13]}  Kh7 {[%clk 0:00:01]} 38. Qxf7+ {[%clk 0:00:10]}  Qxf7 {[%clk 0:00:01]} 39. Bxf7 {[%clk 0:00:11]}  Ba8 {[%clk 0:00:01]} 40. Kf2 {[%clk 0:00:11]} 1-0


[Site "https://www.chess.com"]

[Event "Titled Tuesday Blitz February 21 Early 2023"]
[White "Yuan, Qingyu"]
[Black "Schekachikhin, Maksim"]
[WhiteFideId "8609772"]
[BlackFideId "24177830"]
[WhiteElo "2373"]
[BlackElo "2371"]
[Result "1/2-1/2"]
[Round "02"]
[TimeControl "180+2"]
[Date "2023.02.21"]
[WhiteClock "0:00:43"]
[BlackClock "0:00:52"]

1. e4 {[%clk 0:03:00]}  c6 {[%clk 0:02:59]} 2. d4 {[%clk 0:03:01]}  d5 {[%clk 0:02:59]} 3. exd5 {[%clk 0:03:01]}  cxd5 {[%clk 0:02:59]} 4. Bd3 {[%clk 0:03:02]}  Nc6 {[%clk 0:02:59]} 5. c3 {[%clk 0:03:02]}  Qc7 {[%clk 0:02:59]} 6. h3 {[%clk 0:03:00]}  g6 {[%clk 0:02:57]} 7. Nf3 {[%clk 0:03:00]}  Bf5 {[%clk 0:02:57]} 8. O-O {[%clk 0:03:00]}  Nf6 {[%clk 0:02:55]} 9. Re1 {[%clk 0:02:49]}  Bxd3 {[%clk 0:02:54]} 10. Qxd3 {[%clk 0:02:50]}  Bg7 {[%clk 0:02:53]} 11. Be3 {[%clk 0:02:47]}  O-O {[%clk 0:02:53]} 12. Nbd2 {[%clk 0:02:47]}  Rab8 {[%clk 0:02:48]} 13. Nb3 {[%clk 0:02:33]}  Rfe8 {[%clk 0:02:45]} 14. Nc5 {[%clk 0:02:28]}  Nd7 {[%clk 0:02:24]} 15. Nb3 {[%clk 0:02:23]}  Na5 {[%clk 0:02:12]} 16. Nxa5 {[%clk 0:02:14]}  Qxa5 {[%clk 0:02:13]} 17. Bf4 {[%clk 0:02:14]}  Rbc8 {[%clk 0:02:13]} 18. Re2 {[%clk 0:02:14]}  b5 {[%clk 0:02:12]} 19. a3 {[%clk 0:02:02]}  Qb6 {[%clk 0:02:08]} 20. h4 {[%clk 0:01:59]}  Nf6 {[%clk 0:01:55]} 21. Be5 {[%clk 0:01:45]}  a5 {[%clk 0:01:53]} 22. Bxf6 {[%clk 0:01:44]}  Bxf6 {[%clk 0:01:49]} 23. b4 {[%clk 0:01:44]}  a4 {[%clk 0:01:39]} 24. Re3 {[%clk 0:01:38]}  Qc6 {[%clk 0:01:35]} 25. g3 {[%clk 0:01:31]}  Qc4 {[%clk 0:01:33]} 26. Qd1 {[%clk 0:00:58]}  Bg7 {[%clk 0:01:23]} 27. Nd2 {[%clk 0:00:44]}  Qc6 {[%clk 0:01:13]} 28. Nf3 {[%clk 0:00:44]}  Qc4 {[%clk 0:01:07]} 29. Nd2 {[%clk 0:00:43]}  Qc6 {[%clk 0:01:03]} 30. Nf3 {[%clk 0:00:43]}  Qc4 {[%clk 0:00:52]} 1/2-1/2


[Site "https://www.chess.com"]

[Event "Titled Tuesday Blitz February 21 Early 2023"]
[White "Pinheiro, Iung Alicio de O."]
[Black "Stribuk, Artiom"]
[WhiteFideId "2104350"]
[BlackFideId "13515659"]
[WhiteElo "2306"]
[BlackElo "2378"]
[Result "0-1"]
[Round "02"]
[TimeControl "180+2"]
[Date "2023.02.21"]
[WhiteClock "0:00:07"]
[BlackClock "0:01:03"]

1. e4 {[%clk 0:03:00]}  c5 {[%clk 0:02:59]} 2. Nf3 {[%clk 0:03:00]}  Nc6 {[%clk 0:02:58]} 3. c3 {[%clk 0:02:59]}  Nf6 {[%clk 0:02:57]} 4. e5 {[%clk 0:02:58]}  Nd5 {[%clk 0:02:58]} 5. d4 {[%clk 0:02:57]}  cxd4 {[%clk 0:02:59]} 6. Bc4 {[%clk 0:02:51]}  e6 {[%clk 0:02:58]} 7. cxd4 {[%clk 0:02:49]}  d6 {[%clk 0:02:58]} 8. Qe2 {[%clk 0:02:49]}  Nb6 {[%clk 0:02:37]} 9. Bd3 {[%clk 0:02:46]}  Nb4 {[%clk 0:02:33]} 10. Be4 {[%clk 0:02:01]}  d5 {[%clk 0:02:33]} 11. Bd3 {[%clk 0:01:58]}  Bd7 {[%clk 0:02:25]} 12. Nc3 {[%clk 0:01:58]}  Nxd3+ {[%clk 0:02:24]} 13. Qxd3 {[%clk 0:01:59]}  Rc8 {[%clk 0:02:23]} 14. O-O {[%clk 0:01:58]}  Be7 {[%clk 0:02:23]} 15. h4 {[%clk 0:01:39]}  Bxh4 {[%clk 0:02:07]} 16. g3 {[%clk 0:01:37]}  Be7 {[%clk 0:02:07]} 17. Kg2 {[%clk 0:01:37]}  Na4 {[%clk 0:02:08]} 18. Rh1 {[%clk 0:01:04]}  h6 {[%clk 0:02:07]} 19. g4 {[%clk 0:01:01]}  Nxc3 {[%clk 0:01:50]} 20. bxc3 {[%clk 0:01:00]}  Qa5 {[%clk 0:01:50]} 21. Bd2 {[%clk 0:01:00]}  Qa4 {[%clk 0:01:32]} 22. g5 {[%clk 0:00:57]}  Bb5 {[%clk 0:01:30]} 23. Qb1 {[%clk 0:00:50]}  Kd7 {[%clk 0:01:23]} 24. gxh6 {[%clk 0:00:43]}  gxh6 {[%clk 0:01:22]} 25. Bf4 {[%clk 0:00:20]}  Rxc3 {[%clk 0:01:14]} 26. Bg3 {[%clk 0:00:19]}  b6 {[%clk 0:01:10]} 27. Qe1 {[%clk 0:00:14]}  Qa3 {[%clk 0:01:04]} 28. Rd1 {[%clk 0:00:07]}  Rxf3 {[%clk 0:01:03]} 0-1


[Site "https://www.chess.com"]

[Event "Titled Tuesday Blitz February 21 Early 2023"]
[White "Derjabin, Ilja"]
[Black "Boros, Denes"]
[WhiteFideId "14104768"]
[BlackFideId "722340"]
[WhiteElo "2333"]
[BlackElo "2406"]
[Result "0-1"]
[Round "02"]
[TimeControl "180+2"]
[Date "2023.02.21"]
[WhiteClock "0:00:09"]
[BlackClock "0:00:11"]

1. d4 {[%clk 0:02:53]}  Nf6 {[%clk 0:02:59]} 2. c4 {[%clk 0:02:52]}  Nc6 {[%clk 0:02:55]} 3. Nc3 {[%clk 0:02:47]}  d5 {[%clk 0:02:54]} 4. e3 {[%clk 0:02:43]}  g6 {[%clk 0:02:42]} 5. Nf3 {[%clk 0:02:38]}  Bg7 {[%clk 0:02:42]} 6. Be2 {[%clk 0:02:35]}  O-O {[%clk 0:02:42]} 7. O-O {[%clk 0:02:35]}  a6 {[%clk 0:02:34]} 8. b3 {[%clk 0:02:30]}  e6 {[%clk 0:02:31]} 9. Ba3 {[%clk 0:02:28]}  Re8 {[%clk 0:02:31]} 10. Rc1 {[%clk 0:02:28]}  b6 {[%clk 0:02:30]} 11. cxd5 {[%clk 0:02:22]}  exd5 {[%clk 0:02:30]} 12. Na4 {[%clk 0:02:08]}  Bb7 {[%clk 0:02:22]} 13. Rc2 {[%clk 0:01:47]}  Bh6 {[%clk 0:02:10]} 14. Qc1 {[%clk 0:01:37]}  Re6 {[%clk 0:02:04]} 15. Ne5 {[%clk 0:01:33]}  Nxd4 {[%clk 0:01:57]} 16. exd4 {[%clk 0:01:01]}  Bxc1 {[%clk 0:01:56]} 17. Rfxc1 {[%clk 0:01:02]}  c5 {[%clk 0:01:46]} 18. Bf3 {[%clk 0:00:53]}  Ne4 {[%clk 0:01:40]} 19. Nd3 {[%clk 0:00:46]}  c4 {[%clk 0:01:23]} 20. bxc4 {[%clk 0:00:39]}  dxc4 {[%clk 0:01:17]} 21. Rxc4 {[%clk 0:00:39]}  b5 {[%clk 0:01:14]} 22. Rc7 {[%clk 0:00:39]}  Qxd4 {[%clk 0:00:51]} 23. Nf4 {[%clk 0:00:29]}  Qxa4 {[%clk 0:00:37]} 24. Nxe6 {[%clk 0:00:24]}  Qxa3 {[%clk 0:00:37]} 25. Bxe4 {[%clk 0:00:22]}  Re8 {[%clk 0:00:25]} 26. Bxb7 {[%clk 0:00:18]}  Rxe6 {[%clk 0:00:25]} 27. h3 {[%clk 0:00:16]}  Qxa2 {[%clk 0:00:22]} 28. Rd7 {[%clk 0:00:15]}  Qb2 {[%clk 0:00:19]} 29. Rc8+ {[%clk 0:00:14]}  Kg7 {[%clk 0:00:19]} 30. Rcc7 {[%clk 0:00:15]}  Rf6 {[%clk 0:00:13]} 31. Bd5 {[%clk 0:00:12]}  Qxf2+ {[%clk 0:00:12]} 32. Kh1 {[%clk 0:00:13]}  Qf1+ {[%clk 0:00:12]} 33. Kh2 {[%clk 0:00:13]}  Qf5 {[%clk 0:00:12]} 34. Bf3 {[%clk 0:00:12]}  b4 {[%clk 0:00:12]} 35. Rb7 {[%clk 0:00:12]}  a5 {[%clk 0:00:12]} 36. Rd5 {[%clk 0:00:12]}  Qf4+ {[%clk 0:00:12]} 37. Kh1 {[%clk 0:00:12]}  h5 {[%clk 0:00:13]} 38. Rxa5 {[%clk 0:00:11]}  Re6 {[%clk 0:00:13]} 39. Ra1 {[%clk 0:00:10]}  Re3 {[%clk 0:00:11]} 40. Kg1 {[%clk 0:00:09]}  Rxf3 {[%clk 0:00:11]} 41. gxf3 {[%clk 0:00:09]}  Qd4+ {[%clk 0:00:11]} 0-1


[Site "https://www.chess.com"]

[Event "Titled Tuesday Blitz February 21 Early 2023"]
[White "Maltsevskaya, Aleksandra"]
[Black "Pakleza, Zbigniew"]
[WhiteFideId "24174041"]
[BlackFideId "1119290"]
[WhiteElo "2390"]
[BlackElo "2494"]
[Result "1-0"]
[Round "02"]
[TimeControl "180+2"]
[Date "2023.02.21"]
[WhiteClock "0:00:09"]
[BlackClock "0:00:38"]

1. e4 {[%clk 0:03:00]}  d6 {[%clk 0:03:00]} 2. d4 {[%clk 0:03:00]}  Nf6 {[%clk 0:03:01]} 3. Nc3 {[%clk 0:03:00]}  c6 {[%clk 0:03:01]} 4. Nf3 {[%clk 0:02:59]}  Bg4 {[%clk 0:03:01]} 5. h3 {[%clk 0:02:59]}  Bh5 {[%clk 0:03:01]} 6. Bc4 {[%clk 0:02:58]}  e6 {[%clk 0:03:01]} 7. Bb3 {[%clk 0:02:52]}  d5 {[%clk 0:03:02]} 8. e5 {[%clk 0:02:51]}  Nfd7 {[%clk 0:03:01]} 9. g4 {[%clk 0:02:48]}  Bg6 {[%clk 0:03:00]} 10. Ne2 {[%clk 0:02:48]}  c5 {[%clk 0:03:00]} 11. c3 {[%clk 0:02:48]}  Nc6 {[%clk 0:03:00]} 12. Ng3 {[%clk 0:02:47]}  Be7 {[%clk 0:02:54]} 13. Be3 {[%clk 0:02:22]}  cxd4 {[%clk 0:02:50]} 14. cxd4 {[%clk 0:02:22]}  Na5 {[%clk 0:02:51]} 15. O-O {[%clk 0:02:15]}  Qb6 {[%clk 0:02:49]} 16. Rc1 {[%clk 0:02:12]}  Nxb3 {[%clk 0:02:44]} 17. axb3 {[%clk 0:02:13]}  O-O {[%clk 0:02:41]} 18. h4 {[%clk 0:02:09]}  h6 {[%clk 0:02:28]} 19. h5 {[%clk 0:02:02]}  Bh7 {[%clk 0:02:28]} 20. g5 {[%clk 0:01:59]}  hxg5 {[%clk 0:02:29]} 21. Bxg5 {[%clk 0:02:00]}  f6 {[%clk 0:01:58]} 22. exf6 {[%clk 0:01:18]}  Bxf6 {[%clk 0:01:59]} 23. Re1 {[%clk 0:01:05]}  Rae8 {[%clk 0:01:55]} 24. Rc3 {[%clk 0:01:05]}  Be4 {[%clk 0:01:41]} 25. Nxe4 {[%clk 0:01:02]}  dxe4 {[%clk 0:01:42]} 26. Rxe4 {[%clk 0:01:02]}  Qb5 {[%clk 0:01:37]} 27. Qd3 {[%clk 0:00:29]}  Qf5 {[%clk 0:01:27]} 28. Rf4 {[%clk 0:00:26]}  Qd5 {[%clk 0:01:06]} 29. Qg6 {[%clk 0:00:20]}  Rf7 {[%clk 0:00:58]} 30. Bxf6 {[%clk 0:00:17]}  Nxf6 {[%clk 0:00:59]} 31. Rxf6 {[%clk 0:00:16]}  Rxf6 {[%clk 0:00:50]} 32. Qxe8+ {[%clk 0:00:17]}  Rf8 {[%clk 0:00:51]} 33. Qg6 {[%clk 0:00:12]}  Rxf3 {[%clk 0:00:51]} 34. h6 {[%clk 0:00:11]}  Qxd4 {[%clk 0:00:38]} 35. Rxf3 {[%clk 0:00:09]} 1-0


[Site "https://www.chess.com"]

[Event "Titled Tuesday Blitz February 21 Early 2023"]
[White "Movahed, Sina"]
[Black "Baghdasaryan, Vahe"]
[WhiteFideId "42520835"]
[BlackFideId "13303139"]
[WhiteElo "2340"]
[BlackElo "2257"]
[Result "1-0"]
[Round "02"]
[TimeControl "180+2"]
[Date "2023.02.21"]
[WhiteClock "0:01:14"]
[BlackClock "0:00:01"]

1. e4 {[%clk 0:03:00]}  c5 {[%clk 0:02:46]} 2. Nf3 {[%clk 0:03:00]}  e6 {[%clk 0:02:46]} 3. b3 {[%clk 0:02:59]}  Nc6 {[%clk 0:02:40]} 4. Bb2 {[%clk 0:02:59]}  a6 {[%clk 0:02:40]} 5. c4 {[%clk 0:02:58]}  Nf6 {[%clk 0:02:40]} 6. e5 {[%clk 0:02:58]}  Ng4 {[%clk 0:02:31]} 7. g3 {[%clk 0:02:57]}  h5 {[%clk 0:02:29]} 8. Bg2 {[%clk 0:02:52]}  Be7 {[%clk 0:02:29]} 9. O-O {[%clk 0:02:50]}  h4 {[%clk 0:02:26]} 10. Re1 {[%clk 0:02:45]}  hxg3 {[%clk 0:02:23]} 11. hxg3 {[%clk 0:02:46]}  Qc7 {[%clk 0:01:57]} 12. Nc3 {[%clk 0:02:37]}  Kf8 {[%clk 0:01:21]} 13. Qe2 {[%clk 0:02:02]}  g6 {[%clk 0:01:14]} 14. Nd5 {[%clk 0:01:52]}  exd5 {[%clk 0:01:13]} 15. cxd5 {[%clk 0:01:53]}  Rh5 {[%clk 0:00:57]} 16. d6 {[%clk 0:01:52]}  Qb6 {[%clk 0:00:48]} 17. dxe7+ {[%clk 0:01:50]}  Nxe7 {[%clk 0:00:49]} 18. d4 {[%clk 0:01:49]}  Nf5 {[%clk 0:00:19]} 19. Rad1 {[%clk 0:01:43]}  cxd4 {[%clk 0:00:15]} 20. Nxd4 {[%clk 0:01:44]}  Ngh6 {[%clk 0:00:05]} 21. Nxf5 {[%clk 0:01:25]}  Rxf5 {[%clk 0:00:06]} 22. Rd6 {[%clk 0:01:18]}  Qc5 {[%clk 0:00:05]} 23. Bd4 {[%clk 0:01:17]}  Qc7 {[%clk 0:00:04]} 24. g4 {[%clk 0:01:16]}  Rf4 {[%clk 0:00:03]} 25. Be3 {[%clk 0:01:16]}  Rxg4 {[%clk 0:00:01]} 26. Bxh6+ {[%clk 0:01:14]} 1-0


[Site "https://www.chess.com"]

[Event "Titled Tuesday Blitz February 21 Early 2023"]
[White "Ilkhomi, Jaloliddin"]
[Black "Ahmadzada, Ahmad"]
[WhiteFideId "14700948"]
[BlackFideId "13413007"]
[WhiteElo "1997"]
[BlackElo "2488"]
[Result "0-1"]
[Round "02"]
[TimeControl "180+2"]
[Date "2023.02.21"]
[WhiteClock "0:00:18"]
[BlackClock "0:00:05"]

1. Nf3 {[%clk 0:03:00]}  c5 {[%clk 0:02:58]} 2. b3 {[%clk 0:02:56]}  Nc6 {[%clk 0:02:56]} 3. Bb2 {[%clk 0:02:57]}  d6 {[%clk 0:02:56]} 4. e3 {[%clk 0:02:57]}  e5 {[%clk 0:02:56]} 5. d4 {[%clk 0:02:57]}  cxd4 {[%clk 0:02:52]} 6. exd4 {[%clk 0:02:56]}  e4 {[%clk 0:02:53]} 7. Nfd2 {[%clk 0:02:57]}  d5 {[%clk 0:02:53]} 8. Bb5 {[%clk 0:02:55]}  f5 {[%clk 0:02:50]} 9. O-O {[%clk 0:02:54]}  Nf6 {[%clk 0:02:51]} 10. c4 {[%clk 0:02:53]}  a6 {[%clk 0:02:46]} 11. Ba4 {[%clk 0:02:45]}  Bd6 {[%clk 0:02:39]} 12. Nc3 {[%clk 0:02:40]}  Bxh2+ {[%clk 0:02:27]} 13. Kxh2 {[%clk 0:02:37]}  Ng4+ {[%clk 0:02:27]} 14. Kg1 {[%clk 0:02:20]}  Qh4 {[%clk 0:02:24]} 15. Nf3 {[%clk 0:02:20]}  exf3 {[%clk 0:02:11]} 16. Re1+ {[%clk 0:02:01]}  Kf7 {[%clk 0:01:33]} 17. Qxf3 {[%clk 0:01:21]}  Qh2+ {[%clk 0:01:30]} 18. Kf1 {[%clk 0:01:17]}  Qh1+ {[%clk 0:01:29]} 19. Ke2 {[%clk 0:01:16]}  Nxd4+ {[%clk 0:01:30]} 20. Kd3 {[%clk 0:01:13]}  Qxe1 {[%clk 0:00:54]} 21. Qxd5+ {[%clk 0:01:06]}  Qe6 {[%clk 0:00:53]} 22. Qxd4 {[%clk 0:00:57]}  b5 {[%clk 0:00:47]} 23. cxb5 {[%clk 0:00:52]}  Bb7 {[%clk 0:00:45]} 24. Kc2 {[%clk 0:00:43]}  Rhd8 {[%clk 0:00:32]} 25. Qc4 {[%clk 0:00:43]}  axb5 {[%clk 0:00:27]} 26. Qxe6+ {[%clk 0:00:41]}  Kxe6 {[%clk 0:00:27]} 27. Bxb5 {[%clk 0:00:41]}  Nxf2 {[%clk 0:00:25]} 28. Bc4+ {[%clk 0:00:39]}  Kd7 {[%clk 0:00:20]} 29. Rf1 {[%clk 0:00:35]}  Ng4 {[%clk 0:00:19]} 30. Re1 {[%clk 0:00:33]}  Re8 {[%clk 0:00:17]} 31. Rd1+ {[%clk 0:00:33]}  Kc8 {[%clk 0:00:16]} 32. Nb5 {[%clk 0:00:33]}  Ne3+ {[%clk 0:00:16]} 33. Kc1 {[%clk 0:00:31]}  Nxd1 {[%clk 0:00:16]} 34. Nd6+ {[%clk 0:00:32]}  Kd7 {[%clk 0:00:11]} 35. Nxe8 {[%clk 0:00:10]}  Nxb2 {[%clk 0:00:09]} 36. Bb5+ {[%clk 0:00:11]}  Bc6 {[%clk 0:00:08]} 37. Bxc6+ {[%clk 0:00:11]}  Kxc6 {[%clk 0:00:09]} 38. Nxg7 {[%clk 0:00:12]}  Nd3+ {[%clk 0:00:09]} 39. Kc2 {[%clk 0:00:11]}  Nf4 {[%clk 0:00:08]} 40. Nxf5 {[%clk 0:00:11]}  Rxa2+ {[%clk 0:00:08]} 41. Kc3 {[%clk 0:00:11]}  Rxg2 {[%clk 0:00:08]} 42. Ne7+ {[%clk 0:00:11]}  Kd6 {[%clk 0:00:06]} 43. Nf5+ {[%clk 0:00:12]}  Ke5 {[%clk 0:00:07]} 44. Ne3 {[%clk 0:00:13]}  Nd5+ {[%clk 0:00:07]} 45. Kd3 {[%clk 0:00:12]}  Rg3 {[%clk 0:00:07]} 46. b4 {[%clk 0:00:12]}  Rxe3+ {[%clk 0:00:07]} 47. Kc4 {[%clk 0:00:13]}  Re4+ {[%clk 0:00:07]} 48. Kb5 {[%clk 0:00:14]}  Rxb4+ {[%clk 0:00:08]} 49. Kc6 {[%clk 0:00:15]}  h5 {[%clk 0:00:07]} 50. Kd7 {[%clk 0:00:16]}  h4 {[%clk 0:00:08]} 51. Ke8 {[%clk 0:00:17]}  Rb7 {[%clk 0:00:07]} 52. Kd8 {[%clk 0:00:17]}  Kd6 {[%clk 0:00:05]} 53. Kc8 {[%clk 0:00:18]}  Rg7 {[%clk 0:00:05]} 0-1


[Site "https://www.chess.com"]